fUSD/lending_fUSD_20240121
["ID","MTS","AMOUNT","RATE_DAILY","PERIOD"]
[312395006,1705858276854,-500.0,0.00041095,31]
[312395007,1705858276863,-500.0,0.00041095,31]
[312395008,1705858276872,-503.45069053,0.00041095,31]
[312395009,1705858276882,-9649.82,0.00041095,31]
[312395010,1705858276891,-1916.53,0.00041095,31]
[312395011,1705858276900,-500.0,0.00041095,31]
[312395012,1705858276910,-500.0,0.00041095,31]
[312395013,1705858276919,-1240.43,0.00041095,31]
[312395014,1705858276929,-695.14,0.00041095,31]
[312395015,1705858276938,-500.0,0.00041095,31]
[312395016,1705858276947,-500.0,0.00041095,31]
[312395017,1705858276957,-500.0,0.00041095,31]
[312395018,1705858276966,-500.0,0.00041095,31]
[312395019,1705858276975,-1114.6,0.00041095,31]
[312395020,1705858276984,-1341.69,0.00041095,31]
[312395021,1705858276994,-500.0,0.00041095,31]
[312395022,1705858277003,-500.0,0.00041095,31]
[312395023,1705858277012,-921.33,0.00041095,31]
[312395024,1705858277022,-1113.57,0.00041095,31]
[312395025,1705858277031,-500.0,0.00041095,31]
[312395026,1705858277041,-5530.48,0.00041095,31]
[312395027,1705858277051,-500.0,0.00041095,31]
[312395028,1705858277063,-500.0,0.00041095,31]
[312395029,1705858277072,-500.0,0.00041095,31]
[312395030,1705858277081,-503.43513153,0.00041095,31]
[312395031,1705858277090,-500.0,0.00041095,31]
[312395032,1705858277100,-500.0,0.00041095,31]
[312395033,1705858277109,-793.66,0.00041095,31]
[312395034,1705858277118,-795.91,0.00041095,31]
[312395035,1705858277127,-500.0,0.00041095,31]
[312395036,1705858277137,-500.0,0.00041095,31]
[312395037,1705858277148,-500.0,0.00041095,31]
[312395038,1705858277157,-500.0,0.00041095,31]
[312395039,1705858277167,-500.0,0.00041095,31]
[312395040,1705858277177,-1440.05,0.00041095,31]
[312395041,1705858277187,-1000.0,0.00041095,2]
[312395042,1705858277197,-3700.14,0.00041095,31]
[312395043,1705858277207,-2092.99,0.00041095,31]
[312395044,1705858277217,-500.0,0.00041095,31]
[312395045,1705858277226,-745.1,0.00041095,31]
[312395046,1705858277236,-10145.93,0.00041095,31]
[312395047,1705858277246,-1414.9,0.00041095,31]
[312395048,1705858277256,-500.0,0.00041095,31]
[312395049,1705858277266,-505.43,0.00041095,31]
[312395050,1705858277275,-500.0,0.00041095,31]
[312395051,1705858277285,-505.78429408,0.00041095,31]
[312395052,1705858277294,-500.0,0.00041095,31]
[312395053,1705858277303,-521.95,0.00041095,31]
[312395054,1705858277312,-500.0,0.00041095,31]
[312395055,1705858277323,-500.0,0.00041095,31]
[312395056,1705858277332,-680.26,0.00041095,5]
[312395057,1705858277341,-909.92,0.00041095,31]
[312395058,1705858277350,-500.0,0.00041095,31]
[312395059,1705858277359,-647.36,0.00041095,31]
[312395060,1705858277369,-969.71,0.00041095,31]
[312395061,1705858277378,-4142.89,0.00041095,31]
[312395062,1705858277387,-1000.0,0.00041095,60]
[312395063,1705858277396,-500.0,0.00041095,31]
[312395064,1705858277406,-500.0,0.00041095,31]
[312395065,1705858277415,-500.0,0.00041095,31]
[312395066,1705858277428,-816.06,0.00041095,31]
[312395067,1705858277437,-506.30338642,0.00041095,31]
[312395068,1705858277447,-2663.37,0.00041095,31]
[312395069,1705858277455,-500.0,0.00041095,31]
[312395070,1705858277465,-500.0,0.00041095,31]
[312395071,1705858277475,-500.0,0.00041095,31]
[312395072,1705858277484,-696.72,0.00041095,31]
[312395073,1705858277493,-525.38,0.00041095,31]
[312395074,1705858277502,-500.0,0.00041095,31]
[312395075,1705858277511,-504.86849857,0.00041095,31]
[312395076,1705858277520,-764.09,0.00041095,31]
[312395077,1705858277530,-500.0,0.00041095,31]
[312395078,1705858277539,-500.0,0.00041095,31]
[312395079,1705858277548,-1574.71,0.00041095,31]
[312395080,1705858277557,-9891.3,0.00041095,31]
[312395081,1705858277566,-5145.07,0.00041095,31]
[312395082,1705858277575,-831.28,0.00041095,31]
[312395083,1705858277585,-932.94,0.00041095,31]
[312395084,1705858277594,-504.18318355,0.00041095,31]
[312395085,1705858277603,-500.0,0.00041095,31]
[312395086,1705858277612,-1364.93,0.00041095,31]
[312395087,1705858277621,-500.0,0.00041095,31]
[312395088,1705858277630,-3404.67,0.00041095,31]
[312395089,1705858277639,-2645.34,0.00041095,31]
[312395090,1705858277649,-500.0,0.00041095,31]
[312395091,1705858277658,-500.0,0.00041095,31]
[312395092,1705858277667,-735.01,0.00041095,31]
[312395093,1705858277676,-500.0,0.00041095,31]
[312395094,1705858277685,-500.0,0.00041095,31]
[312395095,1705858277694,-1174.77,0.00041095,31]
[312395096,1705858277703,-500.0,0.00041095,31]
[312395097,1705858277713,-500.0,0.00041095,31]
[312395098,1705858277722,-738.19,0.00041095,31]
[312395099,1705858277730,-500.0,0.00041095,31]
[312395100,1705858277740,-500.0,0.00041095,31]
[312395101,1705858277750,-944.69,0.00041095,31]
[312395102,1705858277759,-14562.01,0.00041095,31]
[312395103,1705858277769,-4070.43182945,0.00041095,7]
[312395104,1705858277778,-1080.05,0.00041095,31]
[312395105,1705858277787,-1450.35,0.00041095,31]
[312395106,1705858277796,-653.64,0.00041095,31]
[312395107,1705858277805,-500.0,0.00041095,31]
[312395108,1705858277815,-500.0,0.00041095,31]
[312395109,1705858277824,-38083.32,0.00041095,31]
[312395110,1705858277833,-500.0,0.00041095,31]
[312395111,1705858277842,-772.68,0.00041095,31]
[312395112,1705858277851,-9951.76,0.00041095,31]
[312395113,1705858277860,-500.0,0.00041095,31]
[312395114,1705858277869,-996.84,0.00041095,31]
[312395115,1705858277878,-526.57,0.00041095,31]
[312395116,1705858277887,-500.0,0.00041095,31]
[312395117,1705858277896,-1180.64,0.00041095,31]
[312395118,1705858277905,-569.93380826,0.00041095,31]
[312395119,1705858277915,-500.0,0.00041095,31]
[312395120,1705858277924,-500.0,0.00041095,31]
[312395121,1705858277938,-13566.67,0.00041095,31]
[312395122,1705858277948,-500.0,0.00041095,31]
[312395123,1705858277958,-500.0,0.00041095,31]
[312395124,1705858277967,-500.0,0.00041095,31]
[312395125,1705858277977,-2702.04,0.00041095,31]
[312395126,1705858277986,-710.24,0.00041095,31]
[312395127,1705858277995,-2370.4,0.00041095,31]
[312395128,1705858278005,-500.0,0.00041095,31]
[312395129,1705858278015,-841.85,0.00041095,31]
[312395130,1705858278026,-500.0,0.00041095,31]
[312395131,1705858278036,-650.75,0.00041095,31]
[312395132,1705858278051,-500.0,0.00041095,31]
[312395133,1705858278067,-891.39,0.00041095,31]
[312395134,1705858278078,-500.0,0.00041095,31]
[312395135,1705858278087,-500.0,0.00041095,31]
[312395136,1705858278098,-500.0,0.00041095,31]
[312395137,1705858278108,-500.0,0.00041095,31]
[312395138,1705858278117,-500.0,0.00041095,31]
[312395139,1705858278128,-500.0,0.00041095,31]
[312395140,1705858278138,-5635.24,0.00041095,31]
[312395141,1705858278148,-500.0,0.00041095,31]
[312395142,1705858278157,-500.0,0.00041095,31]
[312395143,1705858278167,-500.0,0.00041095,31]
[312395144,1705858278177,-500.0,0.00041095,31]
[312395145,1705858278187,-500.0,0.00041095,31]
[312395146,1705858278197,-2410.09,0.00041095,31]
[312395147,1705858278206,-500.0,0.00041095,30]
[312395148,1705858278216,-500.0,0.00041095,31]
[312395149,1705858278225,-500.0,0.00041095,31]
[312395150,1705858278235,-1587.22,0.00041095,31]
[312395151,1705858278244,-500.0,0.00041095,31]
[312395152,1705858278253,-500.0,0.00041095,31]
[312395153,1705858278263,-2811.02,0.00041095,31]
[312395154,1705858278272,-1486.68,0.00041095,31]
[312395155,1705858278281,-1020.67,0.00041095,31]
[312395156,1705858278290,-500.0,0.00041095,31]
[312395157,1705858278299,-766.24,0.00041095,31]
[312395158,1705858278308,-500.0,0.00041095,31]
[312395159,1705858278318,-429.7667955,0.00041095,31]
[312395160,1705858278326,-500.0,0.00041095,31]
[312395161,1705858278335,-268.38612181,0.00041095,31]
[312395162,1705858278344,-4475.3,0.00041095,31]
[312395163,1705858278353,-500.0,0.00041095,31]
[312395164,1705858278362,-503.80454161,0.00041095,31]
[312395165,1705858278371,-4341.11,0.00041095,31]
[312395166,1705858278380,-678.56,0.00041095,31]
[312395167,1705858278389,-500.0,0.00041095,31]
[312395168,1705858278398,-500.0,0.00041095,31]
[312395169,1705858278407,-500.0,0.00041095,31]
[312395170,1705858278416,-500.0,0.00041095,31]
[312395171,1705858278426,-500.0,0.00041095,31]
[312395172,1705858278435,-500.0,0.00041095,31]
[312395173,1705858278444,-893.6,0.00041095,31]
[312395174,1705858278453,-500.0,0.00041095,31]
[312395175,1705858278462,-1312.71,0.00041095,31]
[312395176,1705858278472,-1879.16,0.00041095,31]
[312395177,1705858278481,-718.8,0.00041095,31]
[312395178,1705858278489,-500.0,0.00041095,31]
[312395179,1705858278498,-843.82,0.00041095,31]
[312395180,1705858278509,-1267.64,0.00041095,31]
[312395181,1705858278520,-512.71,0.00041095,31]
[312395182,1705858278529,-500.0,0.00041095,31]
[312395183,1705858278539,-500.0,0.00041095,31]
[312395184,1705858278548,-808.75,0.00041095,31]
[312395185,1705858278558,-586.73,0.00041095,31]
[312395186,1705858278568,-1163.91,0.00041095,31]
[312395187,1705858278578,-2402.4,0.00041095,31]
[312395188,1705858278587,-500.0,0.00041095,31]
[312395189,1705858278597,-500.0,0.00041095,31]
[312395190,1705858278607,-500.0,0.00041095,31]
[312395191,1705858278616,-500.0,0.00041095,31]
[312395192,1705858278625,-1028.17,0.00041095,31]
[312395193,1705858278634,-767.97,0.00041095,31]
[312395194,1705858278644,-822.33,0.00041095,31]
[312395195,1705858278653,-277.06926453,0.00041095,31]
[312395196,1705858278662,-502.64302325,0.00041095,31]
[312395197,1705858278671,-1331.9,0.00041095,31]
[312395198,1705858278680,-1231.24,0.00041095,31]
[312395199,1705858278689,-500.0,0.00041095,31]
[312395200,1705858278698,-4814.61,0.00041095,31]
[312395201,1705858278707,-951.78,0.00041095,31]
[312395202,1705858278715,-673.38,0.00041095,31]
[312395203,1705858278725,-500.0,0.00041095,31]
[312395204,1705858278734,-623.65,0.00041095,31]
[312395205,1705858278742,-500.0,0.00041095,31]
[312395206,1705858278751,-2661.69,0.00041095,31]
[312395207,1705858278761,-2221.22,0.00041095,31]
[312395208,1705858278770,-1307.43,0.00041095,31]
[312395209,1705858278779,-1998.1,0.00041095,31]
[312395210,1705858278788,-2919.4,0.00041095,31]
[312395211,1705858278797,-500.0,0.00041095,31]
[312395212,1705858278807,-500.0,0.00041095,31]
[312395213,1705858278816,-1516.66,0.00041095,31]
[312395214,1705858278826,-4554.17,0.00041095,31]
[312395215,1705858278834,-500.0,0.00041095,31]
[312395216,1705858278843,-538.27256047,0.00041095,31]
[312395217,1705858278853,-1723.52,0.00041095,31]
[312395218,1705858278862,-500.0,0.00041095,31]
[312395219,1705858278871,-500.0,0.00041095,31]
[312395220,1705858278881,-500.0,0.00041095,31]
[312395221,1705858278889,-966.48,0.00041095,31]
[312395222,1705858278898,-715.12,0.00041095,31]
[312395223,1705858278907,-503.84547025,0.00041095,31]
[312395224,1705858278917,-1352.25,0.00041095,31]
[312395225,1705858278926,-1024.58,0.00041095,31]
[312395226,1705858278935,-500.0,0.00041095,31]
[312395227,1705858278944,-615.15,0.00041095,31]
[312395228,1705858278953,-615.15,0.00041095,31]
[312395229,1705858278963,-615.15,0.00041095,31]
[312395230,1705858278973,-500.0,0.00041095,31]
[312395231,1705858278982,-615.15,0.00041095,31]
[312395232,1705858278991,-512.79923299,0.00041095,31]
[312395233,1705858279001,-615.15,0.00041095,31]
[312395234,1705858279010,-615.15,0.00041095,31]
[312395235,1705858279019,-615.15,0.00041095,31]
[312395236,1705858279028,-615.15,0.00041095,31]
[312395237,1705858279038,-615.15,0.00041095,31]
[312395238,1705858279048,-615.15,0.00041095,31]
[312395239,1705858279060,-615.15,0.00041095,31]
[312395240,1705858279069,-500.0,0.00041095,31]
[312395241,1705858279078,-615.15,0.00041095,31]
[312395242,1705858279088,-506.65727571,0.00041095,31]
[312395243,1705858279099,-615.15,0.00041095,31]
[312395244,1705858279109,-15221.27,0.00041095,31]
[312395245,1705858279118,-500.0,0.00041095,31]
[312395246,1705858279128,-615.15,0.00041095,31]
[312395247,1705858279137,-615.15,0.00041095,31]
[312395248,1705858279147,-615.15,0.00041095,31]
[312395249,1705858279156,-615.15,0.00041095,31]
[312395250,1705858279165,-1317.11,0.00041095,31]
[312395251,1705858279176,-500.0,0.00041095,31]
[312395252,1705858279185,-615.15,0.00041095,31]
[312395253,1705858279195,-615.15,0.00041095,31]
[312395254,1705858279206,-290.90844534,0.00041095,31]
[312395255,1705858279217,-615.15,0.00041095,31]
[312395256,1705858279226,-615.15,0.00041095,31]
[312395257,1705858279235,-615.15,0.00041095,31]
[312395258,1705858279245,-500.0,0.00041095,31]
[312395259,1705858279254,-615.15,0.00041095,31]
[312395260,1705858279264,-615.3106903,0.00041095,31]
[312395261,1705858279273,-801.04,0.00041095,31]
[312395262,1705858279283,-1430.58,0.00041095,31]
[312395263,1705858279292,-719.66,0.00041095,31]
[312395264,1705858279303,-500.0,0.00041095,31]
[312395265,1705858279312,-500.0,0.00041095,31]
[312395266,1705858279322,-500.0,0.00041095,31]
[312395267,1705858279331,-2450.04,0.00041095,31]
[312395268,1705858279341,-500.0,0.00041095,31]
[312395269,1705858279350,-1102.3,0.00041095,31]
[312395270,1705858279359,-11755.0,0.00041095,31]
[312395271,1705858279369,-2398.67,0.00041095,31]
[312395272,1705858279379,-500.0,0.00041095,31]
[312395273,1705858279388,-500.0,0.00041095,31]
[312395274,1705858279398,-580.18,0.00041095,31]
[312395275,1705858279407,-500.0,0.00041095,31]
[312395276,1705858279416,-500.0,0.00041095,31]
[312395277,1705858279426,-500.0,0.00041095,31]
[312395278,1705858279436,-295.06643151,0.00041095,31]
[312395279,1705858279445,-6029.9,0.00041095,31]
[312395280,1705858279455,-500.0,0.00041095,31]
[312395281,1705858279465,-4782.28,0.00041095,31]
[312395282,1705858279475,-747.5,0.00041095,31]
[312395283,1705858279486,-1275.11,0.00041095,31]
[312395284,1705858279496,-633.63,0.00041095,31]
[312395285,1705858279506,-500.0,0.00041095,31]
[312395286,1705858279515,-1385.95,0.00041095,31]
[312395287,1705858279525,-500.0,0.00041095,31]
[312395288,1705858279537,-838.42,0.00041095,31]
[312395289,1705858279547,-1278.23,0.00041095,31]
[312395290,1705858279558,-500.0,0.00041095,31]
[312395291,1705858279569,-500.0,0.00041095,31]
[312395292,1705858279579,-500.0,0.00041095,31]
[312395293,1705858279590,-500.0,0.00041095,31]
[312395294,1705858279600,-500.0,0.00041095,31]
[312395295,1705858279611,-659.66,0.00041095,31]
[312395296,1705858279621,-2022.75,0.00041095,31]
[312395297,1705858279632,-500.0,0.00041095,31]
[312395298,1705858279642,-3652.55,0.00041095,31]
[312395299,1705858279652,-848.6,0.00041095,31]
[312395300,1705858279661,-3523.18,0.00041095,31]
[312395301,1705858279673,-718.17,0.00041095,31]
[312395302,1705858279684,-500.0,0.00041095,31]
[312395303,1705858279694,-898.33,0.00041095,31]
[312395304,1705858279704,-500.0,0.00041095,31]
[312395305,1705858279714,-254.98598581,0.00041095,31]
[312395306,1705858279726,-6799.03,0.00041095,31]
[312395307,1705858279736,-1141.22,0.00041095,31]
[312395308,1705858279747,-500.0,0.00041095,31]
[312395309,1705858279757,-500.0,0.00041095,31]
[312395310,1705858279767,-500.0,0.00041095,31]
[312395311,1705858279777,-1741.89,0.00041095,31]
[312395312,1705858279788,-1623.13,0.00041095,31]
[312395313,1705858279798,-500.0,0.00041095,31]
[312395314,1705858279808,-500.0,0.00041095,31]
[312395315,1705858279819,-500.0,0.00041095,31]
[312395316,1705858279829,-500.0,0.00041095,31]
[312395317,1705858279841,-771.85,0.00041095,31]
[312395318,1705858279852,-500.0,0.00041095,31]
[312395319,1705858279862,-569.27,0.00041095,31]
[312395320,1705858279872,-2338.74,0.00041095,31]
[312395321,1705858279882,-599.51,0.00041095,31]
[312395322,1705858279892,-683.46,0.00041095,31]
[312395323,1705858279903,-1004.91,0.00041095,31]
[312395324,1705858279914,-1665.32,0.00041095,31]
[312395325,1705858279926,-500.0,0.00041095,31]
[312395326,1705858279936,-500.0,0.00041095,31]
[312395327,1705858279946,-1953.86,0.00041095,31]
[312395328,1705858279957,-500.0,0.00041095,31]
[312395329,1705858279967,-500.0,0.00041095,31]
[312395330,1705858279977,-500.0,0.00041095,31]
[312395331,1705858279987,-1307.02,0.00041095,31]
[312395332,1705858279997,-2015.53,0.00041095,31]
[312395333,1705858280007,-1641.41,0.00041095,31]
[312395334,1705858280018,-500.0,0.00041095,31]
[312395335,1705858280028,-500.0,0.00041095,31]
[312395336,1705858280039,-1542.52,0.00041095,31]
[312395337,1705858280051,-500.0,0.00041095,31]
[312395338,1705858280064,-500.0,0.00041095,31]
[312395339,1705858280074,-1132.72,0.00041095,31]
[312395340,1705858280085,-500.0,0.00041095,31]
[312395341,1705858280095,-500.0,0.00041095,31]
[312395342,1705858280106,-536.23,0.00041095,31]
[312395343,1705858280116,-500.0,0.00041095,31]
[312395344,1705858280126,-500.0,0.00041095,31]
[312395345,1705858280136,-500.0,0.00041095,7]
[312395346,1705858280147,-500.0,0.00041095,31]
[312395347,1705858280158,-860.42,0.00041095,31]
[312395348,1705858280168,-500.0,0.00041095,31]
[312395349,1705858280178,-639.35,0.00041095,31]
[312395350,1705858280189,-500.0,0.00041095,31]
[312395351,1705858280200,-507.18031404,0.00041095,31]
[312395352,1705858280209,-529.07,0.00041095,31]
[312395353,1705858280220,-500.0,0.00041095,31]
[312395354,1705858280229,-500.0,0.00041095,31]
[312395355,1705858280240,-500.0,0.00041095,31]
[312395356,1705858280250,-1102.2,0.00041095,31]
[312395357,1705858280260,-168.41757414,0.00041095,31]
[312395358,1705858280271,-2003.86,0.00041095,31]
[312395359,1705858280282,-500.0,0.00041095,31]
[312395360,1705858280292,-500.0,0.00041095,5]
[312395361,1705858280302,-2129.93,0.00041095,31]
[312395362,1705858280312,-971.37,0.00041095,31]
[312395363,1705858280322,-500.0,0.00041095,31]
[312395364,1705858280332,-500.0,0.00041095,31]
[312395365,1705858280342,-500.0,0.00041095,31]
[312395366,1705858280352,-500.0,0.00041095,31]
[312395367,1705858280362,-1208.05,0.00041095,31]
[312395368,1705858280372,-500.0,0.00041095,31]
[312395369,1705858280382,-3628.57,0.00041095,31]
[312395370,1705858280392,-500.0,0.00041095,31]
[312395371,1705858280404,-4143.87,0.00041095,31]
[312395372,1705858280414,-3744.16,0.00041095,31]
[312395373,1705858280425,-8492.56,0.00041095,31]
[312395374,1705858280435,-563.17,0.00041095,31]
[312395375,1705858280445,-500.0,0.00041095,31]
[312395376,1705858280455,-500.0,0.00041095,31]
[312395377,1705858280465,-555.83,0.00041095,10]
[312395378,1705858280475,-2561.14,0.00041095,31]
[312395379,1705858280486,-500.0,0.00041095,31]
[312395380,1705858280496,-500.0,0.00041095,31]
[312395381,1705858280507,-500.0,0.00041095,31]
[312395382,1705858280517,-1152.01,0.00041095,31]
[312395383,1705858280527,-1207.99,0.00041095,31]
[312395384,1705858280537,-500.0,0.00041095,31]
[312395385,1705858280547,-500.0,0.00041095,31]
[312395386,1705858280557,-1944.17,0.00041095,31]
[312395387,1705858280567,-688.17,0.00041095,31]
[312395388,1705858280577,-379.39948407,0.00041095,31]
[312395389,1705858280588,-766.84,0.00041095,31]
[312395390,1705858280598,-726.63,0.00041095,31]
[312395391,1705858280609,-500.0,0.00041095,31]
[312395392,1705858280620,-4478.54,0.00041095,31]
[312395393,1705858280630,-500.0,0.00041095,31]
[312395394,1705858280641,-1741.83,0.00041095,31]
[312395395,1705858280651,-500.0,0.00041095,31]
[312395396,1705858280662,-4116.72,0.00041095,31]
[312395397,1705858280673,-2317.89,0.00041095,31]
[312395398,1705858280684,-719.71,0.00041095,31]
[312395399,1705858280694,-506.06188109,0.00041095,31]
[312395400,1705858280704,-778.89,0.00041095,31]
[312395401,1705858280714,-1457.58,0.00041095,31]
[312395402,1705858280725,-17414.88,0.00041095,31]
[312395403,1705858280735,-1683.36,0.00041095,31]
[312395404,1705858280745,-500.0,0.00041095,31]
[312395405,1705858280756,-506.89,0.00041095,31]
[312395406,1705858280765,-585.2,0.00041095,31]
[312395407,1705858280776,-500.0,0.00041095,31]
[312395408,1705858280786,-712.61,0.00041095,31]
[312395409,1705858280796,-777.78,0.00041095,31]
[312395410,1705858280807,-375.59886726,0.00041095,31]
[312395411,1705858280817,-506.88221388,0.00041095,31]
[312395412,1705858280827,-500.0,0.00041095,31]
[312395413,1705858280837,-1992.63,0.00041095,31]
[312395414,1705858280848,-1297.78,0.00041095,31]
[312395415,1705858280857,-500.0,0.00041095,31]
[312395416,1705858280868,-500.0,0.00041095,31]
[312395417,1705858280878,-1673.34,0.00041095,31]
[312395418,1705858280888,-500.0,0.00041095,2]
[312395419,1705858280899,-676.02,0.00041095,31]
[312395420,1705858280909,-1515.16,0.00041095,31]
[312395421,1705858280920,-1276.24,0.00041095,31]
[312395422,1705858280930,-500.0,0.00041095,31]
[312395423,1705858280941,-519.99,0.00041095,31]
[312395424,1705858280951,-559.3,0.00041095,31]
[312395425,1705858280961,-832.1,0.00041095,31]
[312395426,1705858280971,-500.0,0.00041095,31]
[312395427,1705858280981,-1114.3,0.00041095,31]
[312395428,1705858280992,-522.66223431,0.00041095,31]
[312395429,1705858281002,-617.68,0.00041095,31]
[312395430,1705858281013,-500.0,0.00041095,31]
[312395431,1705858281023,-500.0,0.00041095,31]
[312395432,1705858281034,-4316.85,0.00041095,31]
[312395433,1705858281045,-698.31,0.00041095,31]
[312395434,1705858281060,-500.0,0.00041095,31]
[312395435,1705858281070,-15611.05,0.00041095,31]
[312395436,1705858281081,-500.0,0.00041095,31]
[312395437,1705858281092,-1105.83,0.00041095,31]
[312395438,1705858281102,-500.0,0.00041095,31]
[312395439,1705858281112,-500.0,0.00041095,31]
[312395440,1705858281122,-500.0,0.00041095,31]
[312395441,1705858281134,-578.73,0.00041095,31]
[312395442,1705858281145,-500.0,0.00041095,31]
[312395443,1705858281155,-758.0,0.00041095,31]
[312395444,1705858281165,-3781.38,0.00041095,31]
[312395445,1705858281175,-500.0,0.00041095,31]
[312395446,1705858281186,-500.0,0.00041095,31]
[312395447,1705858281195,-5511.39,0.00041095,31]
[312395448,1705858281205,-570.79,0.00041095,31]
[312395449,1705858281216,-500.0,0.00041095,31]
[312395450,1705858281226,-500.0,0.00041095,31]
[312395451,1705858281235,-500.0,0.00041095,31]
[312395452,1705858281245,-500.0,0.00041095,31]
[312395453,1705858281254,-1748.73,0.00041095,31]
[312395454,1705858281265,-500.0,0.00041095,31]
[312395455,1705858281276,-1000.0,0.00041095,30]
[312395456,1705858281286,-500.0,0.00041095,7]
[312395457,1705858281296,-500.0,0.00041095,31]
[312395458,1705858281305,-500.0,0.00041095,31]
[312395459,1705858281315,-500.0,0.00041095,31]
[312395460,1705858281325,-500.0,0.00041095,31]
[312395461,1705858281335,-500.0,0.00041095,31]
[312395462,1705858281344,-500.0,0.00041095,31]
[312395463,1705858281354,-500.0,0.00041095,31]
[312395464,1705858281364,-500.0,0.00041095,31]
[312395465,1705858281374,-500.0,0.00041095,31]
[312395466,1705858281383,-511.02823516,0.00041095,31]
[312395467,1705858281393,-500.0,0.00041095,31]
[312395468,1705858281402,-500.0,0.00041095,31]
[312395469,1705858281412,-500.0,0.00041095,31]
[312395470,1705858281422,-1625.11,0.00041095,31]
[312395471,1705858281431,-1977.31,0.00041095,31]
[312395472,1705858281441,-500.0,0.00041095,31]
[312395473,1705858281451,-500.0,0.00041095,31]
[312395474,1705858281461,-500.0,0.00041095,31]
[312395475,1705858281471,-500.0,0.00041095,31]
[312395476,1705858281481,-500.0,0.00041095,31]
[312395477,1705858281491,-500.0,0.00041095,31]
[312395478,1705858281500,-500.0,0.00041095,31]
[312395479,1705858281510,-193.39880758,0.00041095,31]
[312395480,1705858281519,-500.0,0.00041095,31]
[312395481,1705858281529,-682.73,0.00041095,31]
[312395482,1705858281539,-500.0,0.00041095,31]
[312395483,1705858281793,-997.22,0.00041095,31]
[312395484,1705858281809,-1819.37,0.00041095,31]
[312395485,1705858281818,-908.78,0.00041095,31]
[312395486,1705858281828,-915.75,0.00041095,31]
[312395487,1705858281839,-1258.24,0.00041095,31]
[312395488,1705858281849,-537.99,0.00041095,30]
[312395489,1705858281858,-500.0,0.00041095,31]
[312395490,1705858281869,-524.07651079,0.00041095,31]
[312395491,1705858281879,-1216.0,0.00041095,31]
[312395492,1705858281888,-500.0,0.00041095,31]
[312395493,1705858281899,-500.0,0.00041095,31]
[312395494,1705858281910,-1270.4,0.00041095,31]
[312395495,1705858281920,-503.34519264,0.00041095,31]
[312395496,1705858281929,-2077.28,0.00041095,31]
[312395497,1705858281939,-500.0,0.00041095,31]
[312395498,1705858281948,-500.0,0.00041095,31]
[312395499,1705858281958,-529.59721143,0.00041095,2]
[312395500,1705858281968,-500.0,0.00041095,31]
[312395501,1705858281978,-500.0,0.00041095,31]
[312395502,1705858281988,-340.70405916,0.00041095,31]
[312395503,1705858281997,-2480.88,0.00041095,31]
[312395504,1705858282007,-2428.09,0.00041095,31]
[312395505,1705858282016,-500.0,0.00041095,31]